[Event "Early-Titled-Tuesday-Blitz-April-16-2024"]
[Site "Chess.com"]
[Date "2024.04.16"]
[Round "6"]
[White "ansko1999"]
[Black "ViratKohl_i"]
[Result "1-0"]
[WhiteElo "2643"]
[BlackElo "2525"]
[TimeControl "180+1"]
[EndTime "9:04:46 PDT"]
[Termination "ansko1999 won by resignation"]

1. c4 {[%clk 0:03:00.9]} 1... e5 {[%clk 0:02:59.4]} 2. Nf3 {[%clk 0:03:00.1]}
2... Nc6 {[%clk 0:02:58.5]} 3. d4 {[%clk 0:02:59.5]} 3... Bb4+ {[%clk
0:02:54.5]} 4. Bd2 {[%clk 0:02:49.2]} 4... Bxd2+ {[%clk 0:02:50.7]} 5. Qxd2
{[%clk 0:02:48]} 5... exd4 {[%clk 0:02:50.4]} 6. Nxd4 {[%clk 0:02:47.6]} 6...
Nf6 {[%clk 0:02:50]} 7. Nxc6 {[%clk 0:02:47]} 7... bxc6 {[%clk 0:02:49.1]} 8. g3
{[%clk 0:02:46.2]} 8... O-O {[%clk 0:02:46.5]} 9. Bg2 {[%clk 0:02:46.3]} 9...
Rb8 {[%clk 0:02:44.1]} 10. Nc3 {[%clk 0:02:46]} 10... c5 {[%clk 0:02:42.9]} 11.
O-O {[%clk 0:02:38.3]} 11... d6 {[%clk 0:02:42.4]} 12. Rad1 {[%clk 0:02:35.2]}
12... Bb7 {[%clk 0:02:38.9]} 13. b3 {[%clk 0:02:29.4]} 13... Bxg2 {[%clk
0:02:37.2]} 14. Kxg2 {[%clk 0:02:30.3]} 14... Qe8 {[%clk 0:02:33.5]} 15. Qd3
{[%clk 0:02:23.7]} 15... Qc6+ {[%clk 0:02:31.9]} 16. Nd5 {[%clk 0:02:15.6]}
16... Nxd5 {[%clk 0:02:30.5]} 17. Qxd5 {[%clk 0:02:13.9]} 17... Qxd5+ {[%clk
0:02:30.1]} 18. Rxd5 {[%clk 0:02:14.4]} 18... a5 {[%clk 0:02:29.6]} 19. e4
{[%clk 0:02:08.1]} 19... Rfe8 {[%clk 0:02:26.9]} 20. e5 {[%clk 0:01:47]} 20...
Rb6 {[%clk 0:01:53.5]} 21. Rfd1 {[%clk 0:01:38.7]} 21... Re6 {[%clk 0:01:51.1]}
22. Rxc5 {[%clk 0:01:33.3]} 22... g6 {[%clk 0:01:44.4]} 23. exd6 {[%clk
0:01:28.1]} 1-0

[Event "Early-Titled-Tuesday-Blitz-April-16-2024"]
[Site "Chess.com"]
[Date "2024.04.16"]
[Round "6"]
[White "Fernando_Offermann"]
[Black "kachsona"]
[Result "0-1"]
[WhiteElo "2454"]
[BlackElo "2621"]
[TimeControl "180+1"]
[EndTime "9:05:11 PDT"]
[Termination "kachsona won by resignation"]

1. Nf3 {[%clk 0:02:59.3]} 1... d5 {[%clk 0:02:59.8]} 2. g3 {[%clk 0:02:59.2]}
2... Nc6 {[%clk 0:02:58.8]} 3. d4 {[%clk 0:02:58.7]} 3... Bg4 {[%clk 0:02:57.2]}
4. Bg2 {[%clk 0:02:58.8]} 4... Qd7 {[%clk 0:02:57.2]} 5. c4 {[%clk 0:02:58.8]}
5... e6 {[%clk 0:02:56.3]} 6. Nc3 {[%clk 0:02:57.4]} 6... Nf6 {[%clk 0:02:55.5]}
7. Qa4 {[%clk 0:02:49.6]} 7... Bxf3 {[%clk 0:02:52.9]} 8. Bxf3 {[%clk
0:02:49.2]} 8... Nxd4 {[%clk 0:02:52.8]} 9. Qxd7+ {[%clk 0:02:46.4]} 9... Kxd7
{[%clk 0:02:52.2]} 10. Kd1 {[%clk 0:02:43]} 10... Nxf3 {[%clk 0:02:51.1]} 11.
exf3 {[%clk 0:02:43.9]} 11... dxc4 {[%clk 0:02:45.9]} 12. Kc2 {[%clk 0:02:43.8]}
12... Bc5 {[%clk 0:02:44.5]} 13. Rd1+ {[%clk 0:02:41]} 13... Ke7 {[%clk
0:02:44.4]} 14. Be3 {[%clk 0:02:40.4]} 14... Bxe3 {[%clk 0:02:42.6]} 15. fxe3
{[%clk 0:02:41.3]} 15... Rad8 {[%clk 0:02:42.5]} 16. e4 {[%clk 0:02:41.3]} 16...
Nd7 {[%clk 0:02:35.4]} 17. Nb5 {[%clk 0:02:36.8]} 17... c6 {[%clk 0:02:29.2]}
18. Nd6 {[%clk 0:02:35.8]} 18... Ne5 {[%clk 0:02:04.8]} 19. Nxb7 {[%clk
0:02:34]} 19... Rxd1 {[%clk 0:02:04.9]} 20. Rxd1 {[%clk 0:02:33.6]} 20... Nxf3
{[%clk 0:02:05.1]} 21. Na5 {[%clk 0:02:29.7]} 21... Ne5 {[%clk 0:02:03.3]} 22.
Kc3 {[%clk 0:02:29.3]} 22... h5 {[%clk 0:02:00.1]} 23. Nxc4 {[%clk 0:02:28.7]}
23... Nxc4 {[%clk 0:01:58]} 24. Kxc4 {[%clk 0:02:29.6]} 24... h4 {[%clk
0:01:52.3]} 25. g4 {[%clk 0:02:29.2]} 25... Rd8 {[%clk 0:01:46.7]} 26. Rxd8
{[%clk 0:02:21.2]} 26... Kxd8 {[%clk 0:01:46.7]} 27. Kc5 {[%clk 0:02:21.2]}
27... Kd7 {[%clk 0:01:45.7]} 28. e5 {[%clk 0:02:20.3]} 28... f6 {[%clk
0:01:37.7]} 29. Kd4 {[%clk 0:02:14.1]} 29... Kc7 {[%clk 0:01:33.3]} 30. b4
{[%clk 0:02:12.7]} 30... Kb6 {[%clk 0:01:31.5]} 31. Kc4 {[%clk 0:02:10.9]} 31...
f5 {[%clk 0:01:21.6]} 32. gxf5 {[%clk 0:02:09.7]} 32... exf5 {[%clk 0:01:21.8]}
33. e6 {[%clk 0:02:05.6]} 33... Kc7 {[%clk 0:01:21.2]} 34. Kc5 {[%clk
0:02:03.1]} 34... g5 {[%clk 0:01:20.1]} 35. e7 {[%clk 0:02:01.8]} 35... Kd7
{[%clk 0:01:20.3]} 36. e8=Q+ {[%clk 0:02:02.3]} 36... Kxe8 {[%clk 0:01:20.6]}
37. Kxc6 {[%clk 0:02:02.4]} 37... f4 {[%clk 0:01:20.8]} 0-1

[Event "Early-Titled-Tuesday-Blitz-April-16-2024"]
[Site "Chess.com"]
[Date "2024.04.16"]
[Round "6"]
[White "UnTucopalaTimba"]
[Black "MaiqMaster"]
[Result "0-1"]
[WhiteElo "2027"]
[BlackElo "2431"]
[TimeControl "180+1"]
[EndTime "9:05:15 PDT"]
[Termination "MaiqMaster won by resignation"]

1. e4 {[%clk 0:03:00.7]} 1... c5 {[%clk 0:02:58.1]} 2. Nf3 {[%clk 0:03:00]} 2...
e6 {[%clk 0:02:53]} 3. c3 {[%clk 0:02:57.8]} 3... Nf6 {[%clk 0:02:52.2]} 4. e5
{[%clk 0:02:32.9]} 4... Nd5 {[%clk 0:02:50.4]} 5. d4 {[%clk 0:02:32.6]} 5...
cxd4 {[%clk 0:02:48.4]} 6. cxd4 {[%clk 0:02:32.6]} 6... d6 {[%clk 0:02:48]} 7.
Nc3 {[%clk 0:02:30.7]} 7... Nxc3 {[%clk 0:02:48.2]} 8. bxc3 {[%clk 0:02:30.6]}
8... Qc7 {[%clk 0:02:44.5]} 9. Qb3 {[%clk 0:02:21.5]} 9... Nd7 {[%clk
0:02:39.2]} 10. Bf4 {[%clk 0:02:17.4]} 10... dxe5 {[%clk 0:02:36.4]} 11. Nxe5
{[%clk 0:02:14.3]} 11... Bd6 {[%clk 0:02:34]} 12. Bb5 {[%clk 0:02:11.9]} 12...
O-O {[%clk 0:02:29.1]} 13. Bxd7 {[%clk 0:02:08.8]} 13... Bxd7 {[%clk 0:02:30]}
14. Nxd7 {[%clk 0:02:08.4]} 14... Qxd7 {[%clk 0:02:25.3]} 15. Bxd6 {[%clk
0:02:07.8]} 15... Qxd6 {[%clk 0:02:26]} 16. Qxb7 {[%clk 0:02:02.9]} 16... Rfc8
{[%clk 0:02:12.1]} 17. Qf3 {[%clk 0:01:59.2]} 17... Qa3 {[%clk 0:02:11.4]} 18.
O-O {[%clk 0:01:49]} 18... Qxc3 {[%clk 0:02:10.4]} 19. Qe4 {[%clk 0:01:41.3]}
19... Rd8 {[%clk 0:01:48.2]} 20. Rfd1 {[%clk 0:01:35.7]} 20... Rac8 {[%clk
0:01:43.9]} 21. a4 {[%clk 0:01:24.7]} 21... Rc4 {[%clk 0:01:37.6]} 22. Qb7
{[%clk 0:01:20.3]} 22... Rcxd4 {[%clk 0:01:34.7]} 23. Rdc1 {[%clk 0:01:12.2]}
23... Qxc1+ {[%clk 0:01:32.6]} 24. Rxc1 {[%clk 0:01:10.8]} 24... Rd1+ {[%clk
0:01:33.5]} 0-1

[Event "Early-Titled-Tuesday-Blitz-April-16-2024"]
[Site "Chess.com"]
[Date "2024.04.16"]
[Round "6"]
[White "Djager97"]
[Black "cristiano78"]
[Result "0-1"]
[WhiteElo "2556"]
[BlackElo "2285"]
[TimeControl "180+1"]
[EndTime "9:05:18 PDT"]
[Termination "cristiano78 won by resignation"]

1. e4 {[%clk 0:03:00.9]} 1... c5 {[%clk 0:02:58.9]} 2. Nf3 {[%clk 0:03:00.2]}
2... d6 {[%clk 0:02:55.2]} 3. d4 {[%clk 0:03:00.1]} 3... cxd4 {[%clk 0:02:55.3]}
4. Nxd4 {[%clk 0:03:01]} 4... Nf6 {[%clk 0:02:55.3]} 5. Nc3 {[%clk 0:03:01.6]}
5... g6 {[%clk 0:02:55.5]} 6. Be2 {[%clk 0:03:00]} 6... Bg7 {[%clk 0:02:56]} 7.
O-O {[%clk 0:03:00.3]} 7... O-O {[%clk 0:02:55.8]} 8. Kh1 {[%clk 0:02:52.9]}
8... Nc6 {[%clk 0:02:52.4]} 9. f4 {[%clk 0:02:49.4]} 9... Nxe4 {[%clk
0:02:42.9]} 10. Nxe4 {[%clk 0:02:21.5]} 10... Nxd4 {[%clk 0:02:41.1]} 11. Be3
{[%clk 0:02:13.9]} 11... Nxe2 {[%clk 0:02:25.2]} 12. Qxe2 {[%clk 0:02:14.8]}
12... b6 {[%clk 0:02:23.9]} 13. c3 {[%clk 0:02:13.2]} 13... Bb7 {[%clk
0:02:14.6]} 14. Bd4 {[%clk 0:02:13.1]} 14... e5 {[%clk 0:02:12.4]} 15. fxe5
{[%clk 0:02:13.2]} 15... dxe5 {[%clk 0:02:12.3]} 16. Bf2 {[%clk 0:02:08.6]}
16... Qe7 {[%clk 0:02:10]} 17. Bg3 {[%clk 0:02:04.8]} 17... f5 {[%clk
0:02:03.7]} 18. Nd2 {[%clk 0:02:04.3]} 18... Rae8 {[%clk 0:01:49.8]} 19. Nc4
{[%clk 0:02:00.2]} 19... f4 {[%clk 0:01:48.5]} 20. Be1 {[%clk 0:01:54.3]} 20...
e4 {[%clk 0:01:48.2]} 21. Bd2 {[%clk 0:01:49.6]} 21... f3 {[%clk 0:01:47]} 22.
gxf3 {[%clk 0:01:47.2]} 22... exf3 {[%clk 0:01:45.7]} 23. Qf2 {[%clk 0:01:47.4]}
23... Ba6 {[%clk 0:01:36.2]} 24. Rfe1 {[%clk 0:01:47.2]} 24... Qf6 {[%clk
0:01:26.2]} 25. b3 {[%clk 0:01:41.2]} 25... Bb7 {[%clk 0:01:23.6]} 26. Rad1
{[%clk 0:01:32.6]} 26... Re2 {[%clk 0:01:22.1]} 0-1

[Event "Early-Titled-Tuesday-Blitz-April-16-2024"]
[Site "Chess.com"]
[Date "2024.04.16"]
[Round "6"]
[White "ChelsieMonica"]
[Black "Aragon"]
[Result "1-0"]
[WhiteElo "2552"]
[BlackElo "2046"]
[TimeControl "180+1"]
[EndTime "9:05:24 PDT"]
[Termination "ChelsieMonica won by checkmate"]

1. e4 {[%clk 0:03:00.9]} 1... a6 {[%clk 0:02:58.7]} 2. Nf3 {[%clk 0:03:00.6]}
2... e6 {[%clk 0:02:57.7]} 3. Nc3 {[%clk 0:03:01.5]} 3... b5 {[%clk 0:02:57.8]}
4. a4 {[%clk 0:03:01.1]} 4... b4 {[%clk 0:02:57.2]} 5. Ne2 {[%clk 0:03:01.6]}
5... Bb7 {[%clk 0:02:56.8]} 6. Ng3 {[%clk 0:03:02.5]} 6... Nf6 {[%clk
0:02:53.8]} 7. d3 {[%clk 0:03:02.6]} 7... d5 {[%clk 0:02:53.4]} 8. exd5 {[%clk
0:03:03.5]} 8... Nxd5 {[%clk 0:02:52.8]} 9. Be2 {[%clk 0:03:04.4]} 9... h5
{[%clk 0:02:51.6]} 10. O-O {[%clk 0:03:05.3]} 10... h4 {[%clk 0:02:51.8]} 11.
Ne4 {[%clk 0:03:04.6]} 11... h3 {[%clk 0:02:32.7]} 12. g3 {[%clk 0:03:04]} 12...
Be7 {[%clk 0:02:32.2]} 13. c4 {[%clk 0:03:00.1]} 13... Nf6 {[%clk 0:02:28.3]}
14. Nxf6+ {[%clk 0:02:55.8]} 14... Bxf6 {[%clk 0:02:24.7]} 15. d4 {[%clk
0:02:56.2]} 15... Nc6 {[%clk 0:02:16.9]} 16. Be3 {[%clk 0:02:55.2]} 16... Ne7
{[%clk 0:02:15]} 17. a5 {[%clk 0:02:52.8]} 17... Nf5 {[%clk 0:02:14.6]} 18. Qb3
{[%clk 0:02:52.4]} 18... Qd6 {[%clk 0:01:59.3]} 19. Rfd1 {[%clk 0:02:46.4]}
19... O-O-O {[%clk 0:01:39]} 20. Rac1 {[%clk 0:02:37.4]} 20... g5 {[%clk
0:01:33.3]} 21. d5 {[%clk 0:02:30]} 21... g4 {[%clk 0:01:22.3]} 22. c5 {[%clk
0:02:27.4]} 22... Bxd5 {[%clk 0:00:57.8]} 23. cxd6 {[%clk 0:02:07.1]} 23... Bxb3
{[%clk 0:00:56.3]} 24. Bxa6+ {[%clk 0:02:05.6]} 24... Kb8 {[%clk 0:00:52.1]} 25.
dxc7+ {[%clk 0:02:05.8]} 25... Ka8 {[%clk 0:00:51.1]} 26. Rxd8+ {[%clk
0:02:00.1]} 26... Rxd8 {[%clk 0:00:47.6]} 27. cxd8=Q+ {[%clk 0:01:52.5]} 27...
Bxd8 {[%clk 0:00:47.3]} 28. Rc8# {[%clk 0:01:52.8]} 1-0

[Event "Early-Titled-Tuesday-Blitz-April-16-2024"]
[Site "Chess.com"]
[Date "2024.04.16"]
[Round "6"]
[White "Dinosaurio_1975"]
[Black "Evgeny81"]
[Result "0-1"]
[WhiteElo "2578"]
[BlackElo "2768"]
[TimeControl "180+1"]
[EndTime "9:05:36 PDT"]
[Termination "Evgeny81 won by resignation"]

1. e4 {[%clk 0:03:00.9]} 1... e6 {[%clk 0:02:58.6]} 2. d4 {[%clk 0:02:59.9]}
2... d5 {[%clk 0:02:59.5]} 3. e5 {[%clk 0:02:59.6]} 3... c5 {[%clk 0:02:59]} 4.
c3 {[%clk 0:03:00]} 4... Bd7 {[%clk 0:02:59.1]} 5. Nf3 {[%clk 0:02:59.8]} 5...
Qb6 {[%clk 0:02:59.4]} 6. Be2 {[%clk 0:03:00.2]} 6... Bb5 {[%clk 0:02:59.7]} 7.
dxc5 {[%clk 0:03:00.8]} 7... Bxc5 {[%clk 0:02:59.1]} 8. b4 {[%clk 0:03:00.9]}
8... Bxe2 {[%clk 0:02:57.3]} 9. Qxe2 {[%clk 0:03:00.6]} 9... Be7 {[%clk
0:02:57.1]} 10. O-O {[%clk 0:02:58.5]} 10... Qa6 {[%clk 0:02:56.5]} 11. Qc2
{[%clk 0:02:53.6]} 11... Nd7 {[%clk 0:02:55.3]} 12. a4 {[%clk 0:02:53.4]} 12...
Qc6 {[%clk 0:02:54.4]} 13. Na3 {[%clk 0:02:53.1]} 13... Rc8 {[%clk 0:02:52.1]}
14. Nb5 {[%clk 0:02:28.7]} 14... a6 {[%clk 0:02:51]} 15. Nfd4 {[%clk 0:02:28.5]}
15... Qc4 {[%clk 0:02:44.7]} 16. Nd6+ {[%clk 0:02:03.4]} 16... Bxd6 {[%clk
0:02:43.6]} 17. exd6 {[%clk 0:02:04.3]} 17... Qxd4 {[%clk 0:02:43.9]} 18. Be3
{[%clk 0:01:47.8]} 18... Qc4 {[%clk 0:02:43.3]} 19. Rfd1 {[%clk 0:01:46.2]}
19... Ngf6 {[%clk 0:02:42.4]} 20. Rd4 {[%clk 0:01:46.1]} 20... Qc6 {[%clk
0:02:42.5]} 21. c4 {[%clk 0:01:44.8]} 21... Qxd6 {[%clk 0:02:40.2]} 22. c5
{[%clk 0:01:37.3]} 22... Qe5 {[%clk 0:02:40.2]} 23. Rad1 {[%clk 0:01:34]} 23...
O-O {[%clk 0:02:40.1]} 24. Bf4 {[%clk 0:01:33.8]} 24... Qh5 {[%clk 0:02:40.3]}
25. R4d3 {[%clk 0:01:31.5]} 25... e5 {[%clk 0:02:37.8]} 26. Rh3 {[%clk
0:01:30.5]} 26... Qg6 {[%clk 0:02:37]} 27. Qxg6 {[%clk 0:01:21.1]} 27... hxg6
{[%clk 0:02:37.9]} 28. Bg5 {[%clk 0:01:22]} 28... a5 {[%clk 0:02:37.2]} 29. Rb1
{[%clk 0:01:16.9]} 29... axb4 {[%clk 0:02:36.2]} 30. Rxb4 {[%clk 0:01:17.8]}
30... Nxc5 {[%clk 0:02:36.2]} 31. Rb5 {[%clk 0:01:16.3]} 31... Nxa4 {[%clk
0:02:29]} 32. Rxb7 {[%clk 0:01:09.8]} 32... Rb8 {[%clk 0:02:23.9]} 33. Rhb3
{[%clk 0:01:07]} 33... Rxb7 {[%clk 0:02:22.8]} 34. Rxb7 {[%clk 0:01:07.9]} 34...
Ne4 {[%clk 0:02:22.6]} 35. Be3 {[%clk 0:01:05.8]} 35... d4 {[%clk 0:02:18.5]}
36. Bc1 {[%clk 0:00:59.6]} 36... Rc8 {[%clk 0:02:18.2]} 37. Ba3 {[%clk
0:00:54.2]} 37... Rc3 {[%clk 0:02:18.2]} 38. f3 {[%clk 0:00:54.8]} 38... Rxa3
{[%clk 0:02:17.3]} 39. fxe4 {[%clk 0:00:54.5]} 39... Nc3 {[%clk 0:02:17.5]} 40.
Re7 {[%clk 0:00:52.7]} 40... Ra5 {[%clk 0:02:16.7]} 41. Re8+ {[%clk 0:00:51.2]}
41... Kh7 {[%clk 0:02:16.5]} 42. Re7 {[%clk 0:00:52.1]} 42... f6 {[%clk
0:02:16.8]} 0-1

[Event "Early-Titled-Tuesday-Blitz-April-16-2024"]
[Site "Chess.com"]
[Date "2024.04.16"]
[Round "6"]
[White "jbking07"]
[Black "Bykov_Egor"]
[Result "0-1"]
[WhiteElo "2424"]
[BlackElo "2577"]
[TimeControl "180+1"]
[EndTime "9:05:44 PDT"]
[Termination "Bykov_Egor won by resignation"]

1. e4 {[%clk 0:03:00.9]} 1... c6 {[%clk 0:02:59.4]} 2. d4 {[%clk 0:03:00.9]}
2... d5 {[%clk 0:03:00]} 3. Nc3 {[%clk 0:03:01.5]} 3... dxe4 {[%clk 0:03:00]} 4.
Nxe4 {[%clk 0:03:02.4]} 4... Bf5 {[%clk 0:02:59.9]} 5. Ng3 {[%clk 0:03:02.5]}
5... Bg6 {[%clk 0:03:00.4]} 6. h4 {[%clk 0:03:02.6]} 6... h6 {[%clk 0:03:00.7]}
7. c3 {[%clk 0:03:01.9]} 7... Nf6 {[%clk 0:02:54.7]} 8. Bd3 {[%clk 0:02:56.2]}
8... Bxd3 {[%clk 0:02:47]} 9. Qxd3 {[%clk 0:02:57.1]} 9... e6 {[%clk 0:02:27.4]}
10. Bf4 {[%clk 0:02:52.2]} 10... Nbd7 {[%clk 0:02:15.6]} 11. Nf3 {[%clk
0:02:47.5]} 11... Be7 {[%clk 0:02:09.4]} 12. Be5 {[%clk 0:02:33.2]} 12... Qb6
{[%clk 0:01:54.2]} 13. O-O {[%clk 0:02:09.6]} 13... a5 {[%clk 0:01:42.9]} 14.
Bxf6 {[%clk 0:02:05.7]} 14... Nxf6 {[%clk 0:01:33.5]} 15. Ne5 {[%clk 0:02:05.3]}
15... a4 {[%clk 0:01:30.8]} 16. b4 {[%clk 0:01:46.7]} 16... axb3 {[%clk
0:01:23.6]} 17. axb3 {[%clk 0:01:47.6]} 17... O-O {[%clk 0:01:22.5]} 18. b4
{[%clk 0:01:36.9]} 18... Qb5 {[%clk 0:01:12.2]} 19. Qd2 {[%clk 0:01:22.5]} 19...
Rfd8 {[%clk 0:01:08]} 20. Rfc1 {[%clk 0:01:16.2]} 20... Rxa1 {[%clk 0:01:04.6]}
21. Rxa1 {[%clk 0:01:15.6]} 21... Qxe5 {[%clk 0:01:00.7]} 0-1

[Event "Early-Titled-Tuesday-Blitz-April-16-2024"]
[Site "Chess.com"]
[Date "2024.04.16"]
[Round "6"]
[White "abc_xyz4744"]
[Black "LionKing2367890"]
[Result "1-0"]
[WhiteElo "2391"]
[BlackElo "2151"]
[TimeControl "180+1"]
[EndTime "9:05:44 PDT"]
[Termination "abc_xyz4744 won by resignation"]

1. e4 {[%clk 0:02:46.3]} 1... e5 {[%clk 0:02:59.5]} 2. Nf3 {[%clk 0:02:44.7]}
2... Nc6 {[%clk 0:02:59.4]} 3. Bc4 {[%clk 0:02:43.7]} 3... Bc5 {[%clk
0:02:59.6]} 4. c3 {[%clk 0:02:43.6]} 4... Nf6 {[%clk 0:02:59.8]} 5. d3 {[%clk
0:02:42.6]} 5... a6 {[%clk 0:02:59.1]} 6. Nbd2 {[%clk 0:02:39.8]} 6... d6 {[%clk
0:02:58.6]} 7. Bb3 {[%clk 0:02:39.3]} 7... Ba7 {[%clk 0:02:57.5]} 8. O-O {[%clk
0:02:38.8]} 8... Be6 {[%clk 0:02:56.9]} 9. Re1 {[%clk 0:02:37]} 9... O-O {[%clk
0:02:56.7]} 10. Nf1 {[%clk 0:02:36.8]} 10... Re8 {[%clk 0:02:55.3]} 11. h3
{[%clk 0:02:36.6]} 11... d5 {[%clk 0:02:51.1]} 12. Bg5 {[%clk 0:02:03.6]} 12...
dxe4 {[%clk 0:02:45.6]} 13. dxe4 {[%clk 0:02:04.5]} 13... Qe7 {[%clk 0:02:42.6]}
14. Ng3 {[%clk 0:01:43.2]} 14... h6 {[%clk 0:02:41.8]} 15. Bh4 {[%clk
0:01:23.6]} 15... Rad8 {[%clk 0:02:36.9]} 16. Qe2 {[%clk 0:01:20.8]} 16... Bxb3
{[%clk 0:01:57.1]} 17. Nf5 {[%clk 0:01:12.6]} 17... Qe6 {[%clk 0:01:50.6]} 18.
axb3 {[%clk 0:01:07.9]} 18... g5 {[%clk 0:01:41.1]} 19. Nxh6+ {[%clk 0:01:02.2]}
19... Kf8 {[%clk 0:01:39.5]} 20. Nxg5 {[%clk 0:00:55.2]} 20... Qd6 {[%clk
0:01:35.1]} 21. Ngxf7 {[%clk 0:00:43.4]} 1-0

[Event "Early-Titled-Tuesday-Blitz-April-16-2024"]
[Site "Chess.com"]
[Date "2024.04.16"]
[Round "6"]
[White "ExchangeAB"]
[Black "Bwert2602"]
[Result "1-0"]
[WhiteElo "2427"]
[BlackElo "2242"]
[TimeControl "180+1"]
[EndTime "9:05:45 PDT"]
[Termination "ExchangeAB won by resignation"]

1. d4 {[%clk 0:03:00.9]} 1... Nf6 {[%clk 0:02:54.5]} 2. Nf3 {[%clk 0:03:01.6]}
2... c5 {[%clk 0:02:53]} 3. e3 {[%clk 0:03:01.7]} 3... cxd4 {[%clk 0:02:50.5]}
4. exd4 {[%clk 0:03:02.6]} 4... d5 {[%clk 0:02:50.9]} 5. Bd3 {[%clk 0:02:58]}
5... Nc6 {[%clk 0:02:51.2]} 6. c3 {[%clk 0:02:57.5]} 6... Bg4 {[%clk 0:02:51.8]}
7. Nbd2 {[%clk 0:02:57.3]} 7... e6 {[%clk 0:02:52]} 8. O-O {[%clk 0:02:57.4]}
8... Bd6 {[%clk 0:02:51.7]} 9. h3 {[%clk 0:02:57.7]} 9... Bh5 {[%clk 0:02:51.7]}
10. Re1 {[%clk 0:02:57.9]} 10... Bg6 {[%clk 0:02:50.7]} 11. Bxg6 {[%clk
0:02:55.3]} 11... hxg6 {[%clk 0:02:51.6]} 12. Ne5 {[%clk 0:02:52.3]} 12... Qc7
{[%clk 0:02:50]} 13. Ndf3 {[%clk 0:02:50.9]} 13... Nd7 {[%clk 0:02:50]} 14. Nxd7
{[%clk 0:02:49.3]} 14... Kxd7 {[%clk 0:02:47]} 15. Be3 {[%clk 0:02:41.7]} 15...
Rh5 {[%clk 0:02:46.4]} 16. b3 {[%clk 0:02:39.1]} 16... Rah8 {[%clk 0:02:21.4]}
17. c4 {[%clk 0:02:39.2]} 17... Ne7 {[%clk 0:02:19]} 18. c5 {[%clk 0:02:37.5]}
18... Bf4 {[%clk 0:02:18.8]} 19. b4 {[%clk 0:02:35.7]} 19... Bxe3 {[%clk
0:02:15.3]} 20. Rxe3 {[%clk 0:02:35.4]} 20... g5 {[%clk 0:02:03.6]} 21. Ne5+
{[%clk 0:02:29.6]} 21... Ke8 {[%clk 0:02:02.6]} 22. Qa4+ {[%clk 0:02:18.3]}
22... Nc6 {[%clk 0:01:55.9]} 23. b5 {[%clk 0:02:08]} 23... Nxe5 {[%clk
0:01:55.7]} 24. Rxe5 {[%clk 0:02:08.9]} 24... b6 {[%clk 0:01:40.4]} 25. cxb6
{[%clk 0:01:57.4]} 25... axb6 {[%clk 0:01:39.8]} 26. Ree1 {[%clk 0:01:49.6]}
26... g4 {[%clk 0:01:28.1]} 27. Rec1 {[%clk 0:01:48.3]} 27... Qf4 {[%clk
0:01:05.7]} 28. Qa7 {[%clk 0:01:38.7]} 1-0

[Event "Early-Titled-Tuesday-Blitz-April-16-2024"]
[Site "Chess.com"]
[Date "2024.04.16"]
[Round "6"]
[White "LubovMarkelova"]
[Black "BallottiLuca"]
[Result "0-1"]
[WhiteElo "2173"]
[BlackElo "2373"]
[TimeControl "180+1"]
[EndTime "9:05:49 PDT"]
[Termination "BallottiLuca won by resignation"]

1. e4 {[%clk 0:00:35.9]} 1... Nf6 {[%clk 0:02:58.6]} 2. e5 {[%clk 0:00:35.8]}
2... Nd5 {[%clk 0:02:58.5]} 3. d4 {[%clk 0:00:36.7]} 3... d6 {[%clk 0:02:56.4]}
4. c4 {[%clk 0:00:37.6]} 4... Nb6 {[%clk 0:02:55]} 5. exd6 {[%clk 0:00:38.5]}
5... exd6 {[%clk 0:02:48.6]} 6. Nc3 {[%clk 0:00:39.1]} 6... Be7 {[%clk
0:02:47.1]} 7. Be3 {[%clk 0:00:39.7]} 7... O-O {[%clk 0:02:41.5]} 8. Rc1 {[%clk
0:00:40.3]} 8... Re8 {[%clk 0:02:39.7]} 9. Nf3 {[%clk 0:00:36.6]} 9... Bg4
{[%clk 0:02:39.7]} 10. Be2 {[%clk 0:00:37]} 10... Nc6 {[%clk 0:02:38.1]} 11. b3
{[%clk 0:00:36.7]} 11... Bxf3 {[%clk 0:02:36.5]} 12. Bxf3 {[%clk 0:00:36.8]}
12... Bg5 {[%clk 0:02:35.5]} 13. Qd2 {[%clk 0:00:23.6]} 13... Bxe3 {[%clk
0:02:35.8]} 14. fxe3 {[%clk 0:00:23.3]} 14... Qh4+ {[%clk 0:02:36.5]} 15. Kf1
{[%clk 0:00:20.3]} 15... Qg5 {[%clk 0:02:08]} 16. Re1 {[%clk 0:00:18.5]} 16...
Re7 {[%clk 0:01:58.6]} 17. h4 {[%clk 0:00:15.8]} 17... Qf6 {[%clk 0:01:54.2]}
18. Ne4 {[%clk 0:00:13.3]} 18... Rxe4 {[%clk 0:01:51.5]} 0-1

[Event "Early-Titled-Tuesday-Blitz-April-16-2024"]
[Site "Chess.com"]
[Date "2024.04.16"]
[Round "6"]
[White "MathiasWomacka"]
[Black "VD_coach"]
[Result "0-1"]
[WhiteElo "2482"]
[BlackElo "2638"]
[TimeControl "180+1"]
[EndTime "9:06:04 PDT"]
[Termination "VD_coach won by resignation"]

1. e4 {[%clk 0:03:00.9]} 1... c5 {[%clk 0:02:59.6]} 2. Nf3 {[%clk 0:03:00.6]}
2... d6 {[%clk 0:02:59.3]} 3. d4 {[%clk 0:02:59.8]} 3... cxd4 {[%clk 0:02:59.1]}
4. Nxd4 {[%clk 0:03:00.7]} 4... Nf6 {[%clk 0:02:58.1]} 5. Nc3 {[%clk 0:03:01.2]}
5... g6 {[%clk 0:02:58]} 6. Be3 {[%clk 0:02:56.9]} 6... Bg7 {[%clk 0:02:57.6]}
7. f3 {[%clk 0:02:57.5]} 7... O-O {[%clk 0:02:57.2]} 8. Qd2 {[%clk 0:02:58]}
8... Nc6 {[%clk 0:02:57.4]} 9. O-O-O {[%clk 0:02:58.2]} 9... Nxd4 {[%clk
0:02:57.5]} 10. Bxd4 {[%clk 0:02:57.5]} 10... Be6 {[%clk 0:02:58.1]} 11. Kb1
{[%clk 0:02:57.1]} 11... Qc7 {[%clk 0:02:57.8]} 12. h4 {[%clk 0:02:55.8]} 12...
Rfc8 {[%clk 0:02:58.3]} 13. h5 {[%clk 0:02:55.8]} 13... Qa5 {[%clk 0:02:58.4]}
14. hxg6 {[%clk 0:02:54.6]} 14... hxg6 {[%clk 0:02:58.8]} 15. a3 {[%clk
0:02:53.3]} 15... Rab8 {[%clk 0:02:58.2]} 16. Bd3 {[%clk 0:02:47]} 16... b5
{[%clk 0:02:45.7]} 17. Qg5 {[%clk 0:02:45.6]} 17... d5 {[%clk 0:02:31.4]} 18.
Nxd5 {[%clk 0:02:20.8]} 18... Bxd5 {[%clk 0:02:21.8]} 19. exd5 {[%clk
0:02:19.2]} 19... b4 {[%clk 0:02:21.9]} 20. axb4 {[%clk 0:02:04.7]} 20... Rxb4
{[%clk 0:02:09.8]} 21. c4 {[%clk 0:02:01.8]} 21... Rcb8 {[%clk 0:01:44.7]} 22.
Bxg6 {[%clk 0:01:19.3]} 22... Rxb2+ {[%clk 0:01:36]} 23. Bxb2 {[%clk 0:01:15.6]}
23... Rxb2+ {[%clk 0:01:36.9]} 24. Kxb2 {[%clk 0:01:11.9]} 24... Ne4+ {[%clk
0:01:27.9]} 25. Kb3 {[%clk 0:00:58.7]} 25... Nc5+ {[%clk 0:01:07.2]} 26. Kc2
{[%clk 0:00:56.6]} 26... Qc3+ {[%clk 0:01:05.1]} 0-1